Cogmind - Beta 14 @@@ ROGUE MODE // 2024.11.20 @ 01:35:27 Player: Calasmeer Result: Destroyed by P-70 Sage with High-powered Shock Rifle Performance ------------- Evolutions (5) 2500 Regions Visited (16) 3200 Robots Destroyed (242) 1210 Value Destroyed (7422) 7422 Prototype IDs (31) 620 Alien Tech Used (0) 0 Bonus (1106) 1106 TOTAL SCORE: 16058 Bonus ------- High Alert Combat Kills 313 Follower Combat Kills 260 Registered with UFD 300 Met Data Miner 300 Friendly Fire -67 Cogmind --------- Core Integrity 0/1000 Matter 250/300 Energy 160/160 System Corruption 17% Temperature Cool (0) Movement Hovering (116) Ox1 Location -5/Upper Caves Parts ------- > --- POWER (2) -------- Light Nuclear Core > --- PROPULSION (5) --- Antigrav System Antigrav System > --- UTILITY (7) ------ Experimental Heat Sink Advanced Cooling System Medium Storage Unit Advanced Signal Interpreter Improved Terrain Scanner Improved Terrain Scan Processor > --- WEAPON (3) ------- Hypervelocity Coil Gun Companion Sword > --- INVENTORY (10) --- Armored Leg Compact Wheel Compact Wheel Matter Compressor (250) Improved Trap Scanner Advanced Visual Processing Unit Tesla Rifle Hypervelocity Coil Gun Improved Remote Datajack Peak State ------------ > --- POWER ------------ Light Antimatter Reactor > --- PROPULSION ------- Carbon-fiber Leg Armored Leg Enhanced Armored Leg Wheel Wheel > --- UTILITY ---------- Experimental Heat Sink Improved Coolant Injector Medium Storage Unit Advanced Signal Interpreter Improved Terrain Scan Processor Hardened Light Armor Plating Point Defense System > --- WEAPON ----------- Disruptor Cannon Disruptor Cannon Companion Sword > --- INVENTORY -------- Compact Wheel Antigrav System Antigrav System Experimental Heat Sink Large Storage Unit Matter Compressor Improved Trap Scanner Advanced Visual Processing Unit Improved Remote Datajack [Rating: 76] Favorites ----------- Power Light Deuterium Engine Engine Light Deuterium Engine Power Core Light Nuclear Core Reactor Cold Fusion Reactor Propulsion Medium Treads Treads Medium Treads Leg Flexi-carbon Leg Wheel Compact Wheel Hover Unit Antigrav System Flight Unit VTOL Module Utility Large Storage Unit Device Coolant Injector Storage Large Storage Unit Processor Machine Analyzer Hackware Hacking Suite Protection Hardened Medium Armor Plating Weapon Spread Laser Energy Gun Spread Laser Energy Cannon EM Pulse Cannon Ballistic Gun Coil Gun Ballistic Cannon Magnetic Acceleration Cannon Launcher Guided EMP Blaster Special Weapon Junk Cannon Impact Weapon Heavy Hammer Slashing Weapon Companion Sword Special Melee Weapon Datajack Build | -11 -10 -9 -9 -9 -8 -8 -8 -8 -8 -6 -6 -6 -6 -5 -5 -5 ------- Run | Yrd Mat Mat Min Exi Min Mat Sto Rec Scr Fac Low Low Dat Pro Fac Upp Slots Evolved 10 | . . 2 . . . 2 . . . 4 . . . . 2 . Power 1 | . . . . . . . . . . . . . . . 1 . Propulsion 3 | . . 1 . . . 1 . . . 1 . . . . . . Utility 5 | . . 1 . . . 1 . . . 2 . . . . 1 . Weapon 1 | . . . . . . . . . . 1 . . . . . . Parts Attached 215 | 8 9 10 . . 2 22 29 9 9 37 . . . 19 58 3 Power 23 | 1 . 2 . . . 1 1 1 . 4 . . . 4 9 . Engine 13 | 1 . 2 . . . 1 1 1 . 1 . . . 3 3 . Core 6 | . . . . . . . . . . . . . . 1 5 . Reactor 4 | . . . . . . . . . . 3 . . . . 1 . Propulsion 63 | 2 3 5 . . 2 9 7 2 . 13 . . . 2 17 1 Treads 14 | . 1 . . . . 6 4 . . 3 . . . . . . Leg 10 | . . . . . . . . . . 3 . . . 2 5 . Wheel 32 | 2 2 5 . . 2 3 3 2 . 6 . . . . 6 1 Hover 4 | . . . . . . . . . . . . . . . 4 . Flight 3 | . . . . . . . . . . 1 . . . . 2 . Utility 49 | 2 3 1 . . . 7 5 2 3 9 . . . 2 14 1 Device 29 | 1 2 1 . . . 3 2 2 3 6 . . . 1 7 1 Storage 4 | 1 1 . . . . . . . . . . . . . 2 . Processor 6 | . . . . . . . 2 . . 2 . . . . 2 . Hackware 2 | . . . . . . . 1 . . . . . . . 1 . Protection 8 | . . . . . . 4 . . . 1 . . . 1 2 . Artifact . | . . . . . . . . . . . . . . . . . Weapon 80 | 3 3 2 . . . 5 16 4 6 11 . . . 11 18 1 Energy Gun 32 | . 3 1 . . . 3 10 2 . 5 . . . 1 7 . Energy Cannon 9 | . . . . . . 2 2 . . . . . . . 5 . Ballistic Gun 12 | 3 . . . . . . 3 . . 2 . . . 3 1 . Ballistic Cannon 4 | . . . . . . . . . . . . . . 2 2 . Launcher 9 | . . . . . . . . 1 . 3 . . . 3 2 . Special Weapon 4 | . . . . . . . . . 3 . . . . 1 . . Impact Weapon 2 | . . 1 . . . . 1 . . . . . . . . . Slashing Weapon 4 | . . . . . . . . . 1 1 . . . 1 1 . Piercing Weapon . | . . . . . . . . . . . . . . . . . Special Melee Weapon 4 | . . . . . . . . 1 2 . . . . . . 1 Unidentified Prototypes 15 | . . 1 . . . 1 6 . 2 4 . . . . 1 . Parts Lost 88 | . . 1 . . 1 8 10 1 . 11 . . . 13 43 . Power 12 | . . . . . . 1 . 1 . . . . . 2 8 . Propulsion 36 | . . 1 . . 1 4 6 . . 9 . . . 4 11 . Utility 21 | . . . . . . 3 3 . . 2 . . . 3 10 . Weapon 19 | . . . . . . . 1 . . . . . . 4 14 . Highest Loss Streak 14 | . . 1 . . 1 2 3 1 . 5 . . . 5 14 . To Critical Strikes 1 | . . . . . . . . . . . . . . . 1 . Average Slot Usage (%) 89 | . 100 99 100 100 99 98 94 99 82 80 100 100 100 83 69 65 Engine 6 | . 14 11 11 11 11 8 8 8 9 1 . . . 3 1 . Reactor 1 | . . . . . . . . . . 4 6 6 6 . . . Treads 13 | . . . . . . 16 31 27 27 13 6 6 6 2 . . Leg 3 | . . . . . . . . . . 4 13 13 13 14 9 . Wheel 12 | . 27 32 33 33 32 18 3 8 9 7 13 13 13 3 4 . Device 13 | . 14 22 22 22 22 14 7 11 11 13 13 13 13 14 11 12 Storage 8 | . 14 11 11 11 11 9 9 9 9 6 6 6 6 6 5 5 Processor 4 | . . . . . . . 5 5 . 6 13 13 13 12 6 11 Hackware 3 | . . . . . . . 2 9 9 3 . . . . 1 . Protection 3 | . . . . . . 12 9 . . 1 6 6 6 4 4 . Energy Gun 8 | . 15 20 22 22 22 12 11 17 . 5 6 6 6 5 4 . Energy Cannon 1 | . . . . . . 5 5 . . . . . . . 1 . Ballistic Gun 2 | . 12 . . . . . . . . 2 6 6 6 4 1 5 Special Weapon 1 | . . . . . . . . . 7 3 . . . . . . Slashing Weapon 1 | . . . . . . . . . . . 6 6 6 1 2 5 Peak Build Rating 76 | 9 12 17 17 17 17 41 41 38 44 65 64 65 65 65 76 61 Average Rating 41 | 4 9 14 17 17 16 31 38 37 38 56 64 64 65 55 52 56 On Entrance 35 | . 9 12 17 17 17 16 41 35 36 44 64 64 65 65 45 55 Naked Turns . | . . . . . . . . . . . . . . . . . Heaviest Build 61 | 12 31 34 34 34 34 54 54 38 43 61 55 55 55 61 61 28 Greatest Support 112 | 26 26 36 36 36 40 112 112 84 84 104 26 26 26 63 78 33 Greatest Overweight (x) 18 | . 2 1 . . . 1 3 3 . 18 2 2 2 3 14 . Average Overweight (x) . | . . . . . . . 1 1 . 2 2 2 2 . . . Largest Inventory Capacity 15 | 8 15 15 15 15 15 15 15 15 15 15 15 15 15 15 15 10 Average Capacity 14 | 6 14 15 15 15 15 15 15 15 15 15 15 15 15 15 13 10 Most Carried 15 | 6 15 15 15 15 15 15 15 15 15 15 12 15 15 15 15 10 Average Carried 13 | 3 12 13 14 14 14 14 13 14 14 13 12 13 15 14 10 9 Final Capacity 15 | 8 15 15 15 15 15 15 15 15 15 15 15 15 15 15 10 10 Final Carried 15 | 6 15 15 14 15 15 15 14 14 15 13 12 15 15 12 10 9 Class Distribution -------------------- 50% | Mutant 32% | Scavenger-Mutant 8% | Scavenger-Skirmisher 3% | Scavenger-Tank Dominant Class ---------------- Mutant | -10/Materials Mutant | -9/Materials Mutant | -9/Mines Mutant | -9/Exiles Mutant | -8/Mines Mutant | -8/Materials Mutant | -8/Storage Mutant | -8/Recycling Scavenger-Mutant | -8/Scraptown Scavenger-Skirmisher | -6/Factory Scavenger-Mutant | -6/Lower Caves Scavenger-Mutant | -6/Lower Caves Scavenger-Mutant | -6/Data Miner Scavenger-Mutant | -5/Proximity Caves Scavenger-Mutant | -5/Factory Scavenger-Mutant | -5/Upper Caves Resources | -11 -10 -9 -9 -9 -8 -8 -8 -8 -8 -6 -6 -6 -6 -5 -5 -5 ----------- Run | Yrd Mat Mat Min Exi Min Mat Sto Rec Scr Fac Low Low Dat Pro Fac Upp Matter Collected 3995 | 200 310 131 50 . 20 205 317 129 205 736 187 74 . 607 804 20 Remotely . | . . . . . . . . . . . . . . . . . Salvage Created 10744 | 122 535 406 80 . 270 1051 2244 897 . 1838 60 328 . 634 2228 51 Parts 480 | 9 50 28 6 . 13 45 102 23 . 60 1 1 . 39 102 1 Haulers Intercepted 9 | . 1 1 . . . 1 4 . . 1 . . . . 1 . Recyclers Shooed 19 | . 2 . . . . . 3 4 . 3 . . . . 7 . Parts Field Recycled . | . . . . . . . . . . . . . . . . . Retrieved Matter . | . . . . . . . . . . . . . . . . . Parts Self-Destructed 45 | . . . . . . . . . . . 5 3 . 37 . . Prevented . | . . . . . . . . . . . . . . . . . Kills | -11 -10 -9 -9 -9 -8 -8 -8 -8 -8 -6 -6 -6 -6 -5 -5 -5 ------- Run | Yrd Mat Mat Min Exi Min Mat Sto Rec Scr Fac Low Low Dat Pro Fac Upp Combat Hostiles Destroyed 153 | . 7 9 2 . 6 20 34 1 . 20 1 1 . 22 30 . Melee 12 | . . . . . . . 1 . . . . . . . 11 . Guns 82 | . 7 8 2 . 6 11 20 1 . 8 1 . . 11 7 . Cannons 29 | . . . . . . 7 10 . . 6 . . . 2 4 . AOE 18 | . . 1 . . . . . . . 3 . . . 9 5 . Classes Destroyed 18 | 2 7 1 . . 1 2 2 . . 2 . . . 1 . . Worker 32 | . 5 2 . . 3 5 6 . . 5 . . . . 6 . Builder 5 | . 2 . . . . . . 1 . 2 . . . . . . Tunneler 4 | 2 2 . . . . . . . . . . . . . . . Hauler 10 | . 1 1 . . . 1 4 . . 2 . . . . 1 . Recycler 28 | 1 1 1 . . 1 . 3 11 . 5 . . . . 5 . Minesweeper 2 | . . . . . . . . . . . . . . 1 . 1 Mechanic 2 | . . . . . . . 1 . . . . . . 1 . . Operator 1 | . 1 . . . . . . . . . . . . . . . Drone 1 | . . . . . . 1 . . . . . . . . . . Watcher 6 | . 3 2 . . . 1 . . . . . . . . . . Swarmer 35 | . 3 3 . . . . 4 . . 4 . . . 12 9 . Grunt 63 | . 4 4 . . 4 11 15 . . 7 . . . 6 12 . Brawler 3 | . . . . . . . 1 . . 1 . . . . 1 . Duelist 5 | . . . . . 2 1 . . . . . . . 2 . . Sentry 27 | . . 2 2 . . 5 13 1 . 3 . . . 1 . . Hunter 10 | . . . . . . 2 1 . . 2 . 1 . 1 3 . Programmer 7 | . . . . . . . . . . 2 . . . . 5 . Behemoth 1 | . . . . . . . . . . 1 . . . . . . Decomposer 1 | . . . . . . . . . . . . . . . . 1 Butcher 1 | . . . . . . . . . . . 1 . . . . . Best Kill Streak 8 | 2 5 8 2 . 5 5 8 7 . 8 1 1 . 5 6 1 Combat Bots Only 7 | . 3 3 2 . 3 4 7 1 . 6 1 1 . 5 5 . Max Kills in Single Turn 5 | 1 5 1 1 . 1 1 1 2 . 2 1 1 . 4 2 1 Gunslinging 1 | . 1 . . . . . . . . . . . . . . . Exploded 4 | . . 1 . . . . . . . 2 . . . 4 2 . Melee 1 | . . . . . . . 1 . . . . . . . 1 . Uniques/NPCs Destroyed . | . . . . . . . . . . . . . . . . . Combat | -11 -10 -9 -9 -9 -8 -8 -8 -8 -8 -6 -6 -6 -6 -5 -5 -5 -------- Run | Yrd Mat Mat Min Exi Min Mat Sto Rec Scr Fac Low Low Dat Pro Fac Upp Hostile Shots Fired 1291 | . 23 21 12 . 27 92 221 14 . 310 48 12 . 122 374 15 Missed 370 | . 9 11 2 . 9 19 56 4 . 116 17 4 . 22 94 7 Damage Taken 14685 | . 275 114 150 . 339 1138 2481 144 . 2631 172 141 . 1950 4983 167 Core 2361 | . 145 46 46 . 65 120 238 15 . 292 11 76 . 307 932 68 Absorbed by Shields . | . . . . . . . . . . . . . . . . . Regen/Repaired (Parts) 176 | . . . . . . . 71 . 38 67 . . . . . . Core Remaining (%) 50 | 100 42 . . . 60 . . . 32 . . . . 19 . . Volleys Fired 616 | 10 64 25 4 . 29 73 137 25 . 95 9 7 . 52 81 5 Largest 3 | 2 2 2 2 . 2 2 2 2 . 3 2 2 . 3 3 1 Hottest 178 | 40 130 130 130 . 130 125 121 110 . 135 105 105 . 166 178 35 Shots Fired 1137 | 19 123 50 8 . 58 146 258 54 . 138 11 14 . 102 149 7 Gun 918 | 19 123 50 8 . 58 120 182 53 . 98 11 14 . 68 107 7 Cannon 160 | . . . . . . 26 76 . . . . . . 22 36 . Launcher 26 | . . . . . . . . 1 . 8 . . . 11 6 . Special 33 | . . . . . . . . . . 32 . . . 1 . . Kinetic 269 | 19 63 . . . . . 13 . . 46 9 7 . 53 52 7 Thermal 690 | . 60 50 8 . 58 139 219 53 . 38 2 7 . 37 19 . Explosive 22 | . . . . . . . . 1 . 4 . . . 11 6 . Electromagnetic 123 | . . . . . . 7 26 . . 18 . . . . 72 . Impact 32 | . . . . . . . . . . 32 . . . . . . Robot Hit Streak 16 | 6 11 6 15 . 11 14 16 10 . 15 5 4 . 7 12 3 Robot Miss Streak 9 | 1 9 7 3 . 7 9 3 3 . 5 1 2 . 8 4 2 Penetration Max 1 | . . . . . . . . . . . 1 . . 1 . . Secondary Targets 7 | . 1 . . . 1 . . . . 1 . . . 4 . . Max Gunslinging Chain 1 | . 1 . . . 1 . . . . 1 . . . 1 . . Shots Hit Robots 858 | 12 65 43 7 . 51 117 188 42 2 97 9 15 . 60 142 8 Core Hits 532 | 5 28 55 10 . 62 111 73 15 . 51 2 5 . 45 68 2 Critical Kills 5 | . . . . . . 1 1 . . 3 . . . . . . Critical Parts Destroyed 5 | . . . . . . . . . . 3 . . . 1 . 1 Critical Strikes 33 | . . . . . . 3 11 . . 8 . 2 . 2 6 1 Burn 17 | . . . . . . 2 10 . . 2 . 2 . . 1 . Meltdown 2 | . . . . . . 1 1 . . . . . . . . . Destroy 3 | . . . . . . . . . . 1 . . . 1 . 1 Blast 1 | . . . . . . . . . . . . . . 1 . . Corrupt 1 | . . . . . . . . . . . . . . . 1 . Smash 5 | . . . . . . . . . . 5 . . . . . . Melee Attacks 86 | . . 2 . . . . 3 9 2 . . 6 . 2 56 6 Impact 5 | . . 2 . . . . 3 . . . . . . . . . Slashing 70 | . . . . . . . . . . . . 6 . 2 56 6 Piercing . | . . . . . . . . . . . . . . . . . Sneak Attacks 15 | . . . . . . . 2 . . . . . . 2 9 2 Combat Hostiles . | . . . . . . . . . . . . . . . . . Follow-up Attacks 1 | . . . . . . . . . . . . . . . 1 . Damage Inflicted 22020 | 131 1287 554 129 . 678 2057 4131 696 . 3801 247 581 . 2721 4731 276 Guns 11219 | 131 811 512 129 . 678 1594 2568 638 . 1531 247 117 . 890 1351 22 Cannons 2801 | . . . . . . 463 1240 . . . . . . 408 690 . Explosions 3364 | . 476 42 . . . . 112 58 . 613 . . . 1270 793 . Melee 2979 | . . . . . . . 211 . . . . 464 . 153 1897 254 Ramming . | . . . . . . . . . . . . . . . . . Kinetic 3336 | 131 456 . . . . . 215 . . 649 202 52 . 829 780 22 Thermal 9584 | . 831 512 129 . 678 1897 3247 638 . 777 45 65 . 469 296 . Explosive 2549 | . . 42 . . . . 21 58 . 365 . . . 1270 793 . Electromagnetic 1915 | . . . . . . 160 437 . . 353 . . . . 965 . Impact 1868 | . . . . . . . 211 . . 1657 . . . . . . Slashing 2768 | . . . . . . . . . . . . 464 . 153 1897 254 Piercing . | . . . . . . . . . . . . . . . . . Highest Corruption 17 | . . . . . . . 5 5 5 12 5 5 5 5 14 17 Average Corruption 5 | . . . . . . . 2 5 5 5 5 5 5 5 6 14 Corruption Purged 7 | . . . . . . . . . . 7 . . . . . . Corruption Blocked . | . . . . . . . . . . . . . . . . . Effects 210 | . . . . . . . 1 30 50 23 17 14 1 34 28 12 Message Errors 54 | . . . . . . . . 7 12 4 7 2 . 10 6 6 Matter Fused 45 | . . . . . . . . 5 15 5 2 5 . 5 7 1 Heat Flow Errors 33 | . . . . . . . . 6 9 3 2 1 . 8 3 1 Energy Discharges 30 | . . . . . . . . 3 5 6 3 4 . 5 3 1 Parts Rejected 2 | . . . . . . . . . . . . . . 1 . 1 Parts Fused 2 | . . . . . . . . . . . 1 1 . . . . Data Loss (minor) 20 | . . . . . . . 1 4 6 1 1 1 1 2 3 . Data Loss (major) 6 | . . . . . . . . . 2 . 1 . . 3 . . Misfires 9 | . . . . . . . . 4 . 1 . . . . 2 2 Alerts 6 | . . . . . . . . 1 1 3 . . . . 1 . Misdirections 2 | . . . . . . . . . . . . . . . 2 . Weapon Failures 1 | . . . . . . . . . . . . . . . 1 . Overload Shots . | . . . . . . . . . . . . . . . . . Overflow Damage 1427 | . 137 . . . . 7 117 . . 550 . 154 . 112 308 42 Projectiles 554 | . . . . . . 7 . . . 515 . . . 18 14 . Explosions 238 | . 137 . . . . . . . . 35 . . . 21 45 . Melee 635 | . . . . . . . 117 . . . . 154 . 73 249 42 Knockbacks 16 | . . . . . . . . . . 8 . . . 3 5 . Impact 7 | . . . . . . . . . . 7 . . . . . . Kinetic 8 | . . . . . . . . . . . . . . 3 5 . Secondary 1 | . . . . . . . . . . 1 . . . . . . Self-Inflicted Damage 267 | . 115 16 . . . . . . . 43 . . . 58 35 . Shots 8 | . 2 1 . . . . . . . 2 . . . 1 2 . Rammed . | . . . . . . . . . . . . . . . . . Targets Rammed . | . . . . . . . . . . . . . . . . . Kicked . | . . . . . . . . . . . . . . . . . Crushed . | . . . . . . . . . . . . . . . . . Highest Temperature 343 | . 27 7 10 . 56 343 338 291 263 126 150 143 . 248 198 166 Average Temperature 93 | . 18 3 5 . 23 87 115 93 111 25 82 92 . 93 91 108 Received Heat Transfer 3787 | . 60 39 36 . 153 585 1242 45 . 330 . . . 417 871 9 Effects 2 | . . . . . . . 2 . . . . . . . . . Interference 2 | . . . . . . . 2 . . . . . . . . . Siege Activations . | . . . . . . . . . . . . . . . . . Robots Corrupted 12 | . . . . . . . 2 . . 6 . . . . 4 . Combat Hostiles 7 | . . . . . . . 1 . . 3 . . . . 3 . Parts Fried 21 | . . . . . . . 4 . . 11 . . . . 6 . Impact Corruptions 20 | . . . . . . . 3 . . 17 . . . . . . Robots Melted 5 | . . . . . . 2 2 . . . . 1 . . . . Combat Hostiles 5 | . . . . . . 2 2 . . . . 1 . . . . Parts Melted 33 | . . . . . . 4 17 3 . 5 . 3 . 1 . . Heat Transferred 17501 | . 1135 660 160 . 840 3079 6813 1221 . 1720 100 350 . 831 592 . Parts Sabotaged . | . . . . . . . . . . . . . . . . . Parts Stolen . | . . . . . . . . . . . . . . . . . Parts Stripped . | . . . . . . . . . . . . . . . . . Power Chain Reactions 4 | . . . . . . . 2 . . 2 . . . . . . Alert | -11 -10 -9 -9 -9 -8 -8 -8 -8 -8 -6 -6 -6 -6 -5 -5 -5 ------- Run | Yrd Mat Mat Min Exi Min Mat Sto Rec Scr Fac Low Low Dat Pro Fac Upp Peak Influence 749 | 15 253 456 131 . 95 252 749 346 . 280 . . . . 530 . Initial 291 | . 9 94 76 . . 37 71 291 . . . . . . 99 . Average 186 | 4 122 249 96 . 43 109 420 189 . 71 . . . . 321 . Maximum Alert Level 3 | . 1 2 . . . 1 3 1 . 1 . . . . 2 . Low Security (%) 66 | 100 69 45 100 . 100 94 21 61 . 95 . . . . 19 . Level 1 21 | . 30 48 . . . 5 25 38 . 4 . . . . 47 . Level 2 10 | . . 5 . . . . 40 . . . . . . . 33 . Level 3 1 | . . . . . . . 11 . . . . . . . . . Level 4 . | . . . . . . . . . . . . . . . . . Level 5 . | . . . . . . . . . . . . . . . . . High Security . | . . . . . . . . . . . . . . . . . Max Security . | . . . . . . . . . . . . . . . . . Squads Dispatched 28 | . 1 3 . . . 3 5 . . 5 . . . 1 10 . Investigation 3 | . . 1 . . . . . . . 1 . . . . 1 . Extermination 5 | . . . . . . . . . . 3 . . . . 2 . Reinforcement 8 | . 1 2 . . . 2 2 . . . . . . . 1 . Assault 3 | . . . . . . . 2 . . . . . . 1 . . Garrison 9 | . . . . . . 1 1 . . 1 . . . . 6 . Intercept . | . . . . . . . . . . . . . . . . . Searches Triggered . | . . . . . . . . . . . . . . . . . Construction Impeded 1 | . . . . . . . . . . . . . . . 1 . Haulers Reinforced . | . . . . . . . . . . . . . . . . . Active Scanning Responses . | . . . . . . . . . . . . . . . . . Cargo Convoy Interrupts . | . . . . . . . . . . . . . . . . . Stealth | -11 -10 -9 -9 -9 -8 -8 -8 -8 -8 -6 -6 -6 -6 -5 -5 -5 --------- Run | Yrd Mat Mat Min Exi Min Mat Sto Rec Scr Fac Low Low Dat Pro Fac Upp Distress Signals 9 | . . 2 . . . 1 2 . . 2 . . . . 2 . Communications Jammed . | . . . . . . . . . . . . . . . . . Distress Signals . | . . . . . . . . . . . . . . . . . Times Spotted 236 | . 16 20 2 . 7 31 50 1 . 28 4 2 . 24 44 7 Peak Tracking Total 12 | . 4 5 2 . 3 3 12 1 . 5 3 1 . 8 7 5 Tactical Retreats 21 | . . 1 . . 1 1 3 . . 2 . . . 4 7 2 Traps | -11 -10 -9 -9 -9 -8 -8 -8 -8 -8 -6 -6 -6 -6 -5 -5 -5 ------- Run | Yrd Mat Mat Min Exi Min Mat Sto Rec Scr Fac Low Low Dat Pro Fac Upp Traps Triggered 6 | . . . . . . . 3 . . 3 . . . . . . Indirectly . | . . . . . . . . . . . . . . . . . Trap Hack Attempts . | . . . . . . . . . . . . . . . . . Triggered . | . . . . . . . . . . . . . . . . . Disarmed . | . . . . . . . . . . . . . . . . . Reprogrammed . | . . . . . . . . . . . . . . . . . Reused . | . . . . . . . . . . . . . . . . . Traps Extracted . | . . . . . . . . . . . . . . . . . Installed . | . . . . . . . . . . . . . . . . . Triggered 1 | . . . . . . . . . . . . . . . 1 . Machines | -11 -10 -9 -9 -9 -8 -8 -8 -8 -8 -6 -6 -6 -6 -5 -5 -5 ---------- Run | Yrd Mat Mat Min Exi Min Mat Sto Rec Scr Fac Low Low Dat Pro Fac Upp Machines Disabled 25 | . 5 5 . . . 3 4 3 . 3 . . . 1 . 1 Max in Single Turn 5 | . 5 4 . . . 2 1 2 . 1 . . . 1 . 1 Garrison Access 1 | . . . . . . . 1 . . . . . . . . . Machines Repaired . | . . . . . . . . . . . . . . . . . Machines Dismantled . | . . . . . . . . . . . . . . . . . Machines Sabotaged . | . . . . . . . . . . . . . . . . . Overloaded Fab Kills . | . . . . . . . . . . . . . . . . . Hacking | -11 -10 -9 -9 -9 -8 -8 -8 -8 -8 -6 -6 -6 -6 -5 -5 -5 --------- Run | Yrd Mat Mat Min Exi Min Mat Sto Rec Scr Fac Low Low Dat Pro Fac Upp Machines Accessed 53 | . 5 4 . 4 . 5 8 9 7 4 1 . 4 . 1 1 Terminals 24 | . 4 4 . . . 5 5 3 . 2 . . . . 1 . Fabricators 2 | . . . . . . . . . . 2 . . . . . . Repair Stations 1 | . . . . . . . 1 . . . . . . . . . Recycling Units 6 | . 1 . . . . . 1 4 . . . . . . . . Scanalyzers . | . . . . . . . . . . . . . . . . . Garrison Access 1 | . . . . . . . 1 . . . . . . . . . Total Hacks 171 | . 8 8 . 4 . 13 13 39 46 7 1 . 30 . 1 1 Successful 141 | . 5 4 . 4 . 6 6 34 46 4 1 . 30 . . 1 Failed 30 | . 3 4 . . . 7 7 5 . 3 . . . . 1 . Catastrophic 6 | . 1 1 . . . 1 2 . . . . . . . 1 . Database Lockouts . | . . . . . . . . . . . . . . . . . Manual 43 | . 7 7 . . . 10 7 8 . 3 . . . . 1 . Terminals 52 | . 7 8 . . . 13 8 10 . 5 . . . . 1 . Fabricators 2 | . . . . . . . . . . 2 . . . . . . Repair Stations 2 | . . . . . . . 2 . . . . . . . . . Recycling Units 7 | . 1 . . . . . 1 5 . . . . . . . . Scanalyzers . | . . . . . . . . . . . . . . . . . Garrison Access 2 | . . . . . . . 2 . . . . . . . . . Terminal Hacks 119 | . . 2 . 4 . 3 2 28 46 2 1 . 30 . . 1 Record 85 | . . . . 4 . . . 25 45 . . . 11 . . . Part Schematic 13 | . . . . . . . . . . . . . 13 . . . Robot Schematic 3 | . . . . . . . . . . . . . 3 . . . Prototype ID Bank 7 | . . . . . . . 1 2 . 1 . . 3 . . . Open Door 4 | . . . . . . . 1 . 1 . 1 . . . . 1 Branch Access Points 1 | . . . . . . 1 . . . . . . . . . . Unreport Threat 5 | . . 1 . . . 2 . 1 . 1 . . . . . . Zone Layout 1 | . . 1 . . . . . . . . . . . . . . Fabricator Hacks 2 | . . . . . . . . . . 2 . . . . . . Network Status 1 | . . . . . . . . . . 1 . . . . . . Build 1 | . . . . . . . . . . 1 . . . . . . Repair Station Hacks 2 | . . . . . . . 2 . . . . . . . . . Scan Component 1 | . . . . . . . 1 . . . . . . . . . Repair 1 | . . . . . . . 1 . . . . . . . . . Recycling Unit Hacks 4 | . 1 . . . . . 1 2 . . . . . . . . Report Inventory 3 | . 1 . . . . . 1 1 . . . . . . . . Retrieve Components 1 | . . . . . . . . 1 . . . . . . . . Scanalyzer . | . . . . . . . . . . . . . . . . . Garrison Access Hacks 1 | . . . . . . . 1 . . . . . . . . . Seal Access 1 | . . . . . . . 1 . . . . . . . . . Unauthorized Hacks 13 | . 4 2 . . . 3 . 4 . . . . . . . . Terminals 10 | . 4 2 . . . 3 . 1 . . . . . . . . Botnet 10 | . 4 2 . . . 3 . 1 . . . . . . . . Fabricators . | . . . . . . . . . . . . . . . . . Repair Stations . | . . . . . . . . . . . . . . . . . Recycling Units 3 | . . . . . . . . 3 . . . . . . . . Tunnel 3 | . . . . . . . . 3 . . . . . . . . Scanalyzers . | . . . . . . . . . . . . . . . . . Garrison Access . | . . . . . . . . . . . . . . . . . Data Cores Recovered . | . . . . . . . . . . . . . . . . . Used . | . . . . . . . . . . . . . . . . . Hacking Detections 18 | . 2 3 . . . 3 5 3 . 1 . . . . 1 . Full Trace Events 4 | . . 1 . . . . . 3 . . . . . . . . Feedback Events . | . . . . . . . . . . . . . . . . . Feedback Blocked . | . . . . . . . . . . . . . . . . . Robot Schematics Acquired 3 | . . . . . . . . . . . . . 3 . . . Robots Built 1 | . . . . . . . . . . 1 . . . . . . Authchips . | . . . . . . . . . . . . . . . . . Time 40 | . . . . . . . . . . 40 . . . . . . Total Robot Build Rating 1 | . . . . . . . . . . 1 . . . . . . Part Schematics Acquired 13 | . . . . . . . . . . . . . 13 . . . Parts Built . | . . . . . . . . . . . . . . . . . Authchips . | . . . . . . . . . . . . . . . . . Time . | . . . . . . . . . . . . . . . . . Total Part Build Rating . | . . . . . . . . . . . . . . . . . Parts Repaired 1 | . . . . . . . 1 . . . . . . . . . Time 51 | . . . . . . . 51 . . . . . . . . . Parts Recycled . | . . . . . . . . . . . . . . . . . Recycled Matter . | . . . . . . . . . . . . . . . . . Retrieved Matter . | . . . . . . . . . . . . . . . . . Retrieved Components 1 | . . . . . . . . 1 . . . . . . . . Parts Scanalyzed . | . . . . . . . . . . . . . . . . . Part Schematics Acquired . | . . . . . . . . . . . . . . . . . Parts Damaged . | . . . . . . . . . . . . . . . . . Bothacking | -11 -10 -9 -9 -9 -8 -8 -8 -8 -8 -6 -6 -6 -6 -5 -5 -5 ------------ Run | Yrd Mat Mat Min Exi Min Mat Sto Rec Scr Fac Low Low Dat Pro Fac Upp Used RIF Installer . | . . . . . . . . . . . . . . . . . Robots Hacked . | . . . . . . . . . . . . . . . . . Non-combat . | . . . . . . . . . . . . . . . . . Combat . | . . . . . . . . . . . . . . . . . Robot Hacks Applied . | . . . . . . . . . . . . . . . . . Relay Couplers Released . | . . . . . . . . . . . . . . . . . Fabnet Peak Effective % . | . . . . . . . . . . . . . . . . . Robots Rewired 1 | . . . . . . . . . . . . . . 1 . . Allies Hacked . | . . . . . . . . . . . . . . . . . Hacks Repelled . | . . . . . . . . . . . . . . . . . Allies | -11 -10 -9 -9 -9 -8 -8 -8 -8 -8 -6 -6 -6 -6 -5 -5 -5 -------- Run | Yrd Mat Mat Min Exi Min Mat Sto Rec Scr Fac Low Low Dat Pro Fac Upp Total Allies 8 | . . . . . . . 2 . . 1 3 . . 2 . . Largest Group 3 | . . . . . . . 2 . . 1 3 . . 2 . . Highest-Rated Group 126 | . . . . . . . 62 . . 10 93 . . 126 . . Highest-Rated Ally 96 | . . . . . . . 31 . . 10 31 . . 96 . . Total Orders 1 | . . . . . . . . . . 1 . . . . . . EXPLORE 1 | . . . . . . . . . . 1 . . . . . . Ally Attacks 44 | . . . . . . . 12 . . . 20 . . 12 . . Total Damage 610 | . . . . . . . 170 . . . 254 . . 186 . . Kills 7 | . . . . . . . 3 . . . 3 . . 1 . . Allies Corrupted . | . . . . . . . . . . . . . . . . . Allies Melted . | . . . . . . . . . . . . . . . . . Intel | -11 -10 -9 -9 -9 -8 -8 -8 -8 -8 -6 -6 -6 -6 -5 -5 -5 ------- Run | Yrd Mat Mat Min Exi Min Mat Sto Rec Scr Fac Low Low Dat Pro Fac Upp Robot Analysis Total . | . . . . . . . . . . . . . . . . . Derelict Logs Recovered 8 | . . . 2 . . . . . . . 2 2 . 2 . . Drone Launches 2 | . . . . . . . . . . 2 . . . . . . Drone Recoveries 1 | . . . . . . . . . . 1 . . . . . . Exploration | -11 -10 -9 -9 -9 -8 -8 -8 -8 -8 -6 -6 -6 -6 -5 -5 -5 ------------- Run | Yrd Mat Mat Min Exi Min Mat Sto Rec Scr Fac Low Low Dat Pro Fac Upp Turns Passed 15261 | 98 692 459 255 487 604 1394 1351 1106 2533 2003 867 486 100 1295 1223 308 Spaces Moved 10017 | 62 460 289 260 541 511 867 541 725 1563 1077 702 374 84 844 635 482 Core 29 | 3 . . . . . . . . . 6 . . . . 20 . Treads 2470 | . . . . . . 329 246 229 1563 103 . . . . . . Legs 722 | . . . . . . . . . . . . . . 514 208 . Wheels 6161 | 59 460 289 260 541 511 538 295 496 . 968 702 374 84 330 254 . Hover 635 | . . . . . . . . . . . . . . . 153 482 Flight . | . . . . . . . . . . . . . . . . . Fastest Speed 48 | 50 90 86 90 90 90 85 110 125 160 100 120 120 120 105 48 52 Average Speed 122 | 88 103 89 90 90 90 118 140 137 160 142 120 120 120 126 113 52 Slowest Speed 950 | 100 110 98 90 90 93 240 160 160 160 950 120 120 120 260 750 52 Overloaded Moves . | . . . . . . . . . . . . . . . . . Propulsion Burnouts . | . . . . . . . . . . . . . . . . . Robots Hopped . | . . . . . . . . . . . . . . . . . Cave-ins Triggered . | . . . . . . . . . . . . . . . . . Exploration Rate (%) 62 | 6 64 33 71 92 96 70 78 90 81 22 77 59 72 93 9 51 Regions Visited 16 Branch Regions 11 Pre-discovered Areas 7 | . . . 2 . . . . 3 . . . 1 1 . . . Known Exits Taken 9 | . . . . . 1 1 1 . . 1 1 1 1 1 1 . Unknown Exits Taken 7 | 1 1 1 1 1 . . . 1 1 . . . . . . . Scrap Searched 16 | . . . 1 . 1 . . . 4 . 1 3 . 5 . 1 Spaces Dug 1 | . . 1 . . . . . . . . . . . . . . Terrain Destroyed 339 | . 26 32 . . . 48 25 . . 50 . . . 102 56 . Melee 1 | . . 1 . . . . . . . . . . . . . . Projectile 23 | . . . . . . 1 2 . . 5 . . . 11 4 . AOE 315 | . 26 31 . . . 47 23 . . 45 . . . 91 52 . Terrain Rammed . | . . . . . . . . . . . . . . . . . Walls Destroyed . | . . . . . . . . . . . . . . . . . Machines Disabled . | . . . . . . . . . . . . . . . . . Actions | -11 -10 -9 -9 -9 -8 -8 -8 -8 -8 -6 -6 -6 -6 -5 -5 -5 --------- Run | Yrd Mat Mat Min Exi Min Mat Sto Rec Scr Fac Low Low Dat Pro Fac Upp Total 11854 | 84 553 435 273 541 597 1090 869 782 1600 1415 716 389 83 976 923 528 Wait 724 | . 5 103 7 . 48 91 141 8 4 178 5 . . 44 60 30 Move 10001 | 61 459 288 259 540 510 866 540 724 1562 1076 701 373 83 843 634 482 Hop . | . . . . . . . . . . . . . . . . . Pick Up 98 | 5 10 3 1 1 5 18 8 2 4 12 . 3 . 9 17 . Fast Attach 96 | 7 2 1 . . . 7 11 3 7 16 . . . 3 38 1 Attach 71 | . . 3 . . 2 7 11 4 2 14 . . . 11 15 2 Detach 18 | . . . . . . . 3 2 5 2 . . . 2 3 1 Swap 48 | 1 7 6 . . . 8 7 2 . 7 . . . 5 5 . Drop 97 | . 6 4 2 . 3 20 8 3 14 15 1 . . 5 15 1 Fire 616 | 10 64 25 4 . 29 73 137 25 . 95 9 7 . 52 81 5 Melee 85 | . . 2 . . . . 3 9 2 . . 6 . 2 55 6 Ram . | . . . . . . . . . . . . . . . . . Kick . | . . . . . . . . . . . . . . . . . Crush . | . . . . . . . . . . . . . . . . . Escape Stasis . | . . . . . . . . . . . . . . . . . Rewire . | . . . . . . . . . . . . . . . . . Trap . | . . . . . . . . . . . . . . . . . Miscellaneous . | . . . . . . . . . . . . . . . . . Route ------- -11/Scrapyard -10/Materials (discovered 4 exits: *Mat x2 / [*Min] / [Sub]) -9/Materials (discovered 2 exits: *Mat / [*Min]) -9/Mines (discovered 3 exits: *Mat x2 / *Exi) -9/Exiles (discovered 2 exits: [*Min x2]) -8/Mines (discovered 2 exits: *Mat x2) -8/Materials (discovered 4 exits: *Fac x2 / *Sto x2) -8/Storage (discovered 2 exits: *Fac / *Rec) -8/Recycling -8/Scraptown (discovered 2 exits: *Fac x2) -6/Factory -6/Lower Caves -6/Lower Caves (discovered 2 exits: *Fac / *Dat) -6/Data Miner -5/Proximity Caves -5/Factory (discovered 4 exits: *Fac x3 / *Upp) -5/Upper Caves History --------- Turn | Location | Event 5 | -11/Scrapyard | Discovered new exit (range 15) 99 | -11/Scrapyard | Entered Materials 136 | -10/Materials | Discovered new exit (range 5) 262 | -10/Materials | Discovered new exit (range 16) 310 | -10/Materials | Build established: Mutant 491 | -10/Materials | Discovered new exit (range 11) 638 | -10/Materials | Core integrity fell below 50% 644 | -10/Materials | Discovered new exit (range 13) 791 | -10/Materials | Entered another Materials area 791 | -9/Materials | Evolved 2 slots: Propulsion x1, Utility x1 1038 | -9/Materials | Discovered new exit (range 7) 1146 | -9/Materials | Discovered new exit (range 7) 1250 | -9/Materials | Entered Mines 1342 | -9/Mines | Learned location of Storage (-8) 1374 | -9/Mines | Identified exit to Materials 1442 | -9/Mines | Discovered exit to Materials (range 16) 1500 | -9/Mines | Deemed a non-threat by the Exiles lab entrance 1500 | -9/Mines | Discovered new exit (range 5) 1505 | -9/Mines | Entered Exiles 1505 | -9/Exiles | Found Exiles lab abandoned 1731 | -9/Exiles | Discovered new exit (range 14) 1983 | -9/Exiles | Discovered new exit (range 14) 1992 | -9/Exiles | Entered Mines 2570 | -8/Mines | Discovered exit to Materials (range 9) 2575 | -8/Mines | Discovered exit to Materials (range 5) 2596 | -8/Mines | Entered Materials 2596 | -8/Materials | Evolved 2 slots: Propulsion x1, Utility x1 2661 | -8/Materials | Garrison activated, responded to threat 2717 | -8/Materials | Met 7R-MNS 2908 | -8/Materials | Discovered new exit (range 12) 3051 | -8/Materials | Discovered new exit (range 8) 3101 | -8/Materials | Identified exit to Storage 3143 | -8/Materials | Discovered new exit (range 8) 3990 | -8/Materials | Entered Storage 4312 | -8/Storage | Repaired Hvy. Ion Engine 4594 | -8/Storage | Met a pair of Derelict thieves 4718 | -8/Storage | Core integrity fell below 50% 4719 | -8/Storage | Lost 3 parts (1n2u) 4737 | -8/Storage | Destroyed 7 combat bots 4778 | -8/Storage | Lost 3 parts (3n) 4957 | -8/Storage | Discovered new exit (range 5) 4973 | -8/Storage | Garrison activated, responded to threat 5007 | -8/Storage | Identified exit to Factory 5277 | -8/Storage | Lost 3 parts (1n1u1w) 5336 | -8/Storage | Used back door to open Recycling access 5336 | -8/Storage | Discovered new exit (range 5) 5340 | -8/Storage | Identified exit to Recycling 5341 | -8/Storage | Entered Recycling 5931 | -8/Recycling | Scanned before Scraplab entrance 6379 | -8/Recycling | Build established: Scavenger-Mutant 6424 | -8/Recycling | Entered Scraplab 6444 | -8/Recycling | Discovered new exit (range 3) 6447 | -8/Recycling | Entered Scraptown 6620 | -8/Scraptown | Visited UFD Registry 6641 | -8/Scraptown | Visited Cyclists 6695 | -8/Scraptown | Registered with UFD as "Quantumspawn" 6728 | -8/Scraptown | Entered Cyclist Reading Room 6800 | -8/Scraptown | Visited Junk Cannon Lab 6808 | -8/Scraptown | Found Prototype Special Weapon 6808 | -8/Scraptown | Identified Junk Cannon 7101 | -8/Scraptown | Heard Great Nut preacher, LISTEN AND RECITE! 7329 | -8/Scraptown | Discovered new exit (range 13) 7737 | -8/Scraptown | Visited Cave Peace 7848 | -8/Scraptown | Visited Cartography Club 7904 | -8/Scraptown | Visited Science Testing Area 8000 | -8/Scraptown | Visited Scrap Suit Storage 8026 | -8/Scraptown | Found Scrap Suit 8187 | -8/Scraptown | Discovered new exit (range 3) 8237 | -8/Scraptown | Visited Supply Room 8313 | -8/Scraptown | Build established: Mutant 8357 | -8/Scraptown | Visited DA-N13 Charitable Foundation 8363 | -8/Scraptown | Found DCF Scrap (27 items) 8406 | -8/Scraptown | Visited Sword Containment 8661 | -8/Scraptown | Visited LU-1G1's Boring Crew 8730 | -8/Scraptown | Visited Chapter 10 8916 | -8/Scraptown | Visited Curators Association 8980 | -8/Scraptown | Entered Factory 8980 | -6/Factory | Evolved 4 slots: Propulsion x1, Utility x2, Weapon x1 9281 | -6/Factory | Spotted B-75 Beast 9293 | -6/Factory | Destroyed B-75 Beast 9626 | -6/Factory | Build established: Scavenger-Skirmisher 9731 | -6/Factory | Fabricated A-02 Transporter? 9965 | -6/Factory | Lost 5 parts (5n) 10144 | -6/Factory | Garrison activated, responded to threat 10337 | -6/Factory | Lost 3 parts (2n1u) 10338 | -6/Factory | System corruption reached 10% 10843 | -6/Factory | Discovered new exit (range 5) 10850 | -6/Factory | Identified exit to Lower Caves 10983 | -6/Factory | Entered Lower Caves 11042 | -6/Lower Caves | Build established: Scavenger-Mutant 11060 | -6/Lower Caves | Learned Factory non-interactive machine intel 11078 | -6/Lower Caves | A Commander dispatched an escort 11121 | -6/Lower Caves | Attracted the attention of an 0b10 checkpoint 11325 | -6/Lower Caves | Encountered a Warlord checkpoint 11450 | -6/Lower Caves | Learned location of 1 exit from Factory 11459 | -6/Lower Caves | Discovered new exit (range 11) 11472 | -6/Lower Caves | Identified exit to Lower Caves 11850 | -6/Lower Caves | Entered another Lower Caves area 11850 | -6/Lower Caves | Accompanied by 2 allies 11851 | -6/Lower Caves | Commander's escort returned to base 11851 | -6/Lower Caves | Commander's escort returned to base 11891 | -6/Lower Caves | Discovered new exit (range 15) 11910 | -6/Lower Caves | Identified exit to Factory 12095 | -6/Lower Caves | Encountered a Warlord checkpoint 12099 | -6/Lower Caves | Attracted the attention of an 0b10 checkpoint 12308 | -6/Lower Caves | Learned location of Extension (-4) 12319 | -6/Lower Caves | Discovered new exit (range 11) 12329 | -6/Lower Caves | Identified exit to Data Miner 12332 | -6/Lower Caves | Learned Factory interactive machine intel 12336 | -6/Lower Caves | Entered Data Miner 12336 | -6/Data Miner | Discovered new exit (range 6) 12341 | -6/Data Miner | Identified exit to Proximity Caves 12359 | -6/Data Miner | Met Data Miner 12401 | -6/Data Miner | Learned location of Section 7 (-3) 12401 | -6/Data Miner | Acquired the access code to Warlord's prototype stash 12410 | -6/Data Miner | Received God Mode back door access code from Data Miner 12436 | -6/Data Miner | Entered Proximity Caves 12532 | -5/Proximity Caves | Attracted the attention of an 0b10 outpost 12609 | -5/Proximity Caves | Core integrity fell below 50% 12645 | -5/Proximity Caves | Lost 5 parts (2n1u2w) 12748 | -5/Proximity Caves | Learned Factory emergency access door positions 12990 | -5/Proximity Caves | Escorted by Enhanced Grunt 13031 | -5/Proximity Caves | Lost 3 parts (2n1u) 13637 | -5/Proximity Caves | Build established: Derelict-Mutant 13665 | -5/Proximity Caves | Core integrity fell below 20% 13707 | -5/Proximity Caves | Discovered exit to Factory (range 10) 13731 | -5/Proximity Caves | Entered Factory 13731 | -5/Factory | Evolved 2 slots: Power x1, Utility x1 13732 | -5/Factory | Identified exit to Upper Caves 13733 | -5/Factory | Identified exit to Factory 13735 | -5/Factory | Loaded intel: 183 non-interactive machine locations 13736 | -5/Factory | Loaded intel: 52 interactive machine locations 13885 | -5/Factory | Garrison activated, responded to threat 14181 | -5/Factory | Lost 14 parts (2p4n3u5w) 14192 | -5/Factory | Core integrity fell below 50% 14256 | -5/Factory | Lost 5 parts (1p2u2w) 14340 | -5/Factory | Build established: Mutant 14664 | -5/Factory | Build established: Scavenger-Mutant 14678 | -5/Factory | Garrison activated, responded to threat 14699 | -5/Factory | Core integrity fell below 20% 14756 | -5/Factory | System corruption reached 10% 14762 | -5/Factory | Discovered exit to Factory (range 12) 14792 | -5/Factory | Lost 11 parts (3p4n2u2w) 14949 | -5/Factory | Discovered exit to Factory (range 15) 14954 | -5/Factory | Entered Upper Caves 14975 | -5/Upper Caves | Lost 3 parts (1p1n1u) 15016 | -5/Upper Caves | Attracted the attention of an 0b10 checkpoint 15233 | -5/Upper Caves | Acquired the password to a Derelict Tinkerer's latest research 15262 | -5/Upper Caves | Destroyed by P-70 Sage with High-powered Shock Rifle Last Messages --------------- 15217_ Y-72 Warden: "ENEMY REINFORCEMENTS INCOMING." 15230_ System corrupted: Matter fused (-5). 15232_ Locked Door breached. 15233_ 0W-Q1S(c): "They're coming to take away my research again!" 15233_ 0W-Q1S(c): "You're not Unaware, and look menacing enough... take it and get as far away from here as you can. Quickly!" 15233_ 0W-Q1S(c): "The password is \\PMM4." 15253_ PUBLIC SERVICE ANNOUNCEMENT: Unaware incursion detected. Likely classification: Search and Destroy. And maybe Retrieve. Something like that, yeah. 15253_ HV Slug penetrates Wall. 15255_ HV Slug penetrates 71-41V(l). 15257_ HV Slug penetrates Wall. 15261_ HV Slug penetrates 71-41V(l). 15262_ System corrupted: Antigrav System rejected. Map ----- +----------------------------------------------------+ | ?????????????????????????????????????????????????? | | ?????????????????????????????????????????????????? | | ?????????????????????????????????????????????????? | | ?????????????????????????????????????????????????? | | ?????????????????????????????????????????????????? | | ?????????????????????????????????????????????????? | | ?????????????????????????????????????????????????? | | ?????????????????????????????????????????????????? | | ?????????????????????????????????????????????????? | | ?????????????????????????????????????????????????? | | ?????????????????????????????????????????????????? | | ?????????????????????????????????????????????????? | | ?????????????????????????????????????????????????? | | ?????????????????????????????????????????????????? | | ??????????????????????????????????????????????#### | | ?????????????????????????????????????????????## # | | ????????????????????????????????????????????## | | ??????????????????????????????????????####### | | ??????????????????????????????????????# | | ???????????????????????????????????#### ## | | ???????????????????????????????##### ## #### ### | | ??????????????????????????????## #??# #?## | | ?????????????????????????????## ### ####??# #?# | | ????????????????????????????## # ##????# #?# | | ?????????????????????######## p ###??# #?# | | ?????????????????????# @ p #??# #?# | | ?????????????????????# l ## # # ## #?# | | ?????????????????????# ## # ## ##? ## #?# | | ??????????????????? ?# ### # ?? #?# | | ???????????????? ??## ###?###### #?# | | ??????????????? #????###????????? ?# | | ?????????????? ????????????????? # #?## | | ????????????? ??????????????????## ##??? | | ????????????? ????????????????????? #????? | | ????????????? ??????????????????????# ##????? | | ?????????????? ????????????????????????###?????? | | ?????????????? ?????????????????????????????????? | | ?????????????????????????????????????????????????? | | ?????????????????????????????????????????????????? | | ?????????????????????????????????????????????????? | | ?????????????????????????????????????????????????? | | ?????????????????????????????????????????????????? | | ?????????????????????????????????????????????????? | | ?????????????????????????????????????????????????? | | ?????????????????????????????????????????????????? | | ?????????????????????????????????????????????????? | | ?????????????????????????????????????????????????? | | ?????????????????????????????????????????????????? | | ?????????????????????????????????????????????????? | | ?????????????????????????????????????????????????? | +----------------------------------------------------+ Best States ------------- Heat Dissipation 97 Coolant Potential 80 Energy Generation 24 Energy Capacity 340 Matter Stores 300 Matter Capacity 300 Sight Range 16 Robot Scan Range 15 Terrain Scan Range 16 Terrain Scan Density 110 Armor Coverage 450 Point Defense Rating 80 Evasion (%) 55 Recoil Reduction 4 Offensive Hacking 12 Item Schematics ----------------- Combat Drone Bay | -6/Data Miner | Free Lgt. Regenerative Plating | -6/Data Miner | Free Enh. Flexi-carbon Leg | -6/Data Miner | Free Tiamat Missile Launcher | -6/Data Miner | Free Exp. Heat Sink | -6/Data Miner | Free Imp. Gyrokinetic Inverter | -6/Data Miner | Free Adv. Target Analyzer | -6/Data Miner | Free Hvy. Disruptor Cannon | -6/Data Miner | Free Point Defense System | -6/Data Miner | Free Dispersion Rifle | -6/Data Miner | Free Lgt. Antimatter Reactor | -6/Data Miner | Free Fusion Bomb Launcher | -6/Data Miner | Free Antigrav Array | -6/Data Miner | Free Robot Schematics ------------------ L-41 Fighter | -6/Data Miner | Free R-10 Processor | -6/Data Miner | Free B-60 Warrior | -6/Data Miner | Free Fabricated ------------ A-02 Transporter | x1 | -6/Factory | Preloaded Alien Tech Used ----------------- None Achievements -------------- A New Friend Explorer My Command Is Your Wish Challenges ------------ None Game ------ Seed AbsorptionCompactLeg Manual? 0 Play Time 02:12:46 Cumulative 39.4 hours Start 2024.11.19 @ 23:01:19 End 2024.11.20 @ 01:35:27 Sessions 9 Manual Loads 0 Difficulty Rogue Special Mode None Game No. 35 Rogue 34 Adventurer 0 Explorer 1 Win Type - Total 1 Types 1/0/0/0/0/0/0/0/0 Lore% 40 Gallery% 39 Achievement% 34 Wizard Run 0 Options --------- Layout 2 ASCII 0 Keyboard 0 Movement Mouse Keybinds 0 Fullscreen 2 Font 32/Smallcaps Map View 50x44 Zoom Use 0% Tactical HUD 1 Map Filters NONE Filters NONE Steam 1 RUN: b49fd353-aa5f-45a3-875d-87eba23024df